bitfinex-derivatives/quotes_ETHF0:USTF0_20210109
["timestamp","ask_amount","ask_price","bid_price","bid_amount"]
[1610203272660,22.9696,1229.4,1229.3,64.84097073]
[1610203274864,22.9696,1229.4,1229.3,60.83138073]
[1610203275263,26.97919,1229.4,1229.3,60.83138073]
[1610203275663,26.97919,1229.4,1229.3,51.24288073]
[1610203276264,26.97919,1229.4,1229.3,50.0]
[1610203278266,26.97919,1229.4,1229.2,50.0]
[1610203278666,26.97919,1229.4,1228.9,50.0]
[1610203279068,26.97919,1229.4,1229.2,50.0]
[1610203279467,26.97919,1229.4,1228.9,50.0]
[1610203280567,26.97919,1229.4,1229.3,50.0]
[1610203282175,26.97919,1229.4,1229.3,51.24317893]
[1610203282377,26.97919,1229.4,1229.3,1.24317893]
[1610203282975,22.9696,1229.4,1229.3,1.24317893]
[1610203283177,22.9696,1229.4,1229.3,5.25276893]
[1610203283776,22.9696,1229.4,1229.3,4.00959]
[1610203283977,22.9696,1229.4,1229.3,60.23599]
[1610203285381,22.9696,1229.4,1229.3,4.00959]
[1610203285780,22.9696,1229.4,1229.3,55.25242283]
[1610203286283,22.9696,1229.4,1229.3,62.74062283]
[1610203291987,22.9696,1229.4,1229.3,58.73103283]
[1610203293389,26.97919,1229.4,1229.3,58.73103283]
[1610203296688,22.9696,1229.4,1229.3,58.73103283]
[1610203297288,22.9696,1229.4,1229.3,62.74062283]
[1610203298890,22.9696,1229.4,1229.3,58.73103283]
[1610203299391,26.97919,1229.4,1229.3,58.73103283]
[1610203324719,26.97919,1229.4,1229.3,51.24283283]
[1610203325117,22.9696,1229.4,1229.3,51.24283283]
[1610203325519,22.9696,1229.4,1229.3,55.25242283]
[1610203327119,21.0,1229.4,1229.3,55.25242283]
[1610203331526,21.0,1229.4,1229.3,102.71922283]
[1610203337131,22.599,1229.4,1229.3,102.71922283]
[1610203343543,22.599,1229.4,1229.3,55.25242283]
[1610203348049,22.599,1229.4,1229.3,51.24283283]
[1610203348648,22.599,1229.4,1229.3,1.24283283]
[1610203349047,22.599,1229.4,1229.3,51.24283283]
[1610203351649,22.599,1229.4,1229.3,55.25242283]
[1610203351850,22.599,1229.4,1229.3,51.24283283]
[1610203353652,22.599,1229.4,1229.3,50.0]
[1610203358060,22.599,1229.4,1228.8,63.60589]
[1610203358258,22.599,1229.4,1229.2,50.0]
[1610203358656,22.599,1229.4,1228.9,50.0]
[1610203359357,22.599,1229.4,1229.3,50.0]
[1610203360158,22.599,1229.4,1228.9,50.0]
[1610203360559,22.599,1229.4,1229.0,50.0]
[1610203361360,22.599,1229.4,1229.1,1.24331948]
[1610203361761,4.00959,1229.2,1229.1,1.24331948]
[1610203361961,4.00959,1229.2,1229.1,55.59631948]
[1610203362360,4.00959,1229.2,1229.1,105.59631948]
[1610203362562,4.00959,1229.2,1229.1,51.24331948]
[1610203363160,4.00959,1229.2,1229.1,1.24331948]
[1610203364265,4.00959,1229.2,1229.1,51.24331948]
[1610203364664,4.00959,1229.2,1229.1,1.24331948]
[1610203366770,34.00959,1229.2,1229.1,1.24331948]
[1610203367470,34.00959,1229.2,1229.0,1.24364149]
[1610203368670,34.00959,1229.2,1228.8,50.0]
[1610203368870,34.00959,1229.2,1228.6,50.0]
[1610203369272,46.7146,1229.0,1228.6,50.0]
[1610203369471,48.3971,1229.0,1228.6,50.0]
[1610203369671,4.00959,1228.7,1228.6,50.0]
[1610203369871,6.24479,1228.7,1228.6,50.0]
[1610203370671,6.24479,1228.7,1228.5,50.0]
[1610203370872,6.24479,1228.7,1228.6,50.0]
[1610203371273,14.88339,1228.7,1228.6,50.0]
[1610203371474,6.24479,1228.7,1228.6,51.24380207]
[1610203371874,6.24479,1228.7,1228.6,1.24380207]
[1610203372274,62.01729,1228.7,1228.6,1.24380207]
[1610203372474,92.01729,1228.7,1228.6,1.24380207]
[1610203373475,92.01729,1228.7,1228.1,50.0]
[1610203373676,4.00959,1228.2,1228.1,50.0]
[1610203373875,5.78859,1228.2,1228.1,50.0]
[1610203374075,5.78859,1228.2,1228.0,50.0]
[1610203375475,5.78859,1228.2,1228.1,1.24417715]
[1610203377376,1.779,1228.2,1228.1,1.24417715]
[1610203377780,1.779,1228.2,1228.1,5.25376715]
[1610203378877,2.2352,1228.7,1228.1,5.25376715]
[1610203379078,2.2352,1228.7,1228.3,48.1456]
[1610203379278,8.1925,1229.0,1228.3,48.1456]
[1610203379679,4.00959,1228.6,1228.4,4.00959]
[1610203379878,5.59259,1228.6,1228.4,4.00959]
[1610203380979,5.59259,1228.6,1228.2,1.24384275]
[1610203381178,5.59259,1228.6,1228.5,1.24380209]
[1610203381378,51.53669,1228.6,1228.5,1.24380209]
[1610203382380,51.53669,1228.6,1228.0,4.00959]
[1610203382580,51.53669,1228.6,1228.4,50.0]
[1610203382979,51.53669,1228.6,1228.0,4.00959]
[1610203383180,51.53669,1228.6,1228.3,50.0]
[1610203383782,4.00959,1228.4,1228.3,50.0]
[1610203384483,4.00959,1228.4,1228.1,1.24419737]
[1610203385382,4.00959,1228.4,1228.3,50.0]
[1610203386681,4.00959,1228.4,1228.3,51.24419187]
[1610203397801,1.583,1228.6,1228.3,51.24419187]
[1610203397999,8.1925,1229.0,1228.4,58.6031]
[1610203398198,8.1925,1229.0,1228.4,108.6031]
[1610203398900,8.1925,1229.0,1228.5,50.0]
[1610203399801,4.00959,1228.6,1228.5,51.24406729]
[1610203400001,6.55619,1228.6,1228.5,51.24406729]
[1610203401804,6.55619,1228.6,1228.5,55.25365729]
[1610203403008,6.55619,1228.6,1228.5,51.24406729]
[1610203407515,6.55619,1228.6,1228.5,1.24406729]
[1610203409521,6.55619,1228.6,1228.5,51.24406729]
[1610203427238,36.55619,1228.6,1228.5,51.24406729]
[1610203428542,36.55619,1228.6,1228.5,1.24406729]
[1610203428945,36.55619,1228.6,1228.1,50.0]
[1610203428946,52.8232,1228.5,1228.1,50.0]
[1610203429144,30.0,1228.4,1227.9,51.9658]
[1610203429944,4.00959,1228.0,1227.9,51.9658]
[1610203430445,49.8551,1227.9,1227.6,4.00959]
[1610203431049,49.8551,1227.9,1227.6,54.00959]
[1610203431249,79.8551,1227.9,1227.6,54.00959]
[1610203432054,4.00959,1227.7,1227.4,4.00959]
[1610203432254,6.25349,1227.7,1227.4,4.00959]
[1610203433356,6.25349,1227.7,1227.5,50.0]
[1610203433756,6.25349,1227.7,1227.5,51.2447862]
[1610203435262,6.25349,1227.7,1227.6,1.24476039]
[1610203435462,6.25349,1227.7,1227.5,50.0]
[1610203436561,6.25349,1227.7,1227.6,1.24475203]
[1610203437161,6.25349,1227.7,1227.5,50.0]
[1610203437963,6.25349,1227.7,1227.6,1.24489204]
[1610203439464,2.2439,1227.7,1227.6,1.24489204]
[1610203439665,2.1059,1228.0,1227.6,53.54229204]
[1610203439866,40.77656906,1228.4,1227.6,53.54229204]
[1610203440064,4.00959,1227.8,1227.7,4.00959]
[1610203440274,5.93839,1227.8,1227.7,4.00959]
[1610203440867,5.93839,1227.8,1227.7,1.24481011]
[1610203442166,5.93839,1227.8,1227.6,54.00959]
[1610203443468,5.93839,1227.8,1227.7,50.0]
[1610203446168,1.9288,1227.8,1227.7,50.0]
[1610203446368,53.5903787,1228.4,1227.7,50.0]
[1610203446568,53.5903787,1228.4,1227.9,61.929]
[1610203446768,59.70355445,1228.5,1227.9,61.929]
[1610203447068,46.97433394,1228.5,1227.9,61.929]
[1610203448069,4.00959,1228.0,1227.9,61.929]
[1610203448267,6.0852,1228.5,1227.9,61.929]
[1610203448468,1.779,1228.0,1227.9,61.929]
[1610203449368,1.779,1228.0,1227.9,63.17355267]
[1610203449970,5.78859,1228.0,1227.9,63.17355267]
[1610203451472,5.78859,1228.0,1227.9,1.24455267]
[1610203453175,5.78859,1228.0,1227.7,50.0]
[1610203453773,5.78859,1228.0,1227.9,1.24473456]
[1610203455074,5.78859,1228.0,1227.8,1.24473242]
[1610203458983,15.02239,1228.0,1227.8,1.24473242]
[1610203461181,5.78859,1228.0,1227.8,1.24473242]
[1610203462982,5.78859,1228.0,1227.9,50.0]
[1610203463687,5.78859,1228.0,1227.8,1.24473242]
[1610203463885,5.78859,1228.0,1227.8,51.24473242]
[1610203464086,5.78859,1228.0,1227.9,50.0]
[1610203464687,5.78859,1228.0,1227.9,51.24475299]
[1610203473394,5.78859,1228.0,1227.9,1.24475299]
[1610203473994,5.78859,1228.0,1227.9,51.24475299]
[1610203474397,5.78859,1228.0,1227.9,1.24475299]
[1610203474894,5.78859,1228.0,1227.9,51.24475299]
[1610203475396,5.78859,1228.0,1227.9,1.24475299]
[1610203475796,5.78859,1228.0,1227.9,51.24475299]
[1610203475996,5.78859,1228.0,1227.9,50.0]
[1610203477398,5.78859,1228.0,1227.9,51.24486393]
[1610203477598,1.779,1228.0,1227.9,51.24486393]
[1610203477897,40.84069386,1228.4,1227.9,51.24486393]
[1610203478097,4.00959,1228.0,1227.9,55.25445393]
[1610203478297,4.00959,1228.0,1227.9,5.25445393]
[1610203478497,6.10669,1228.0,1227.9,5.25445393]
[1610203478697,6.10669,1228.0,1227.9,4.00959]
[1610203478896,6.10669,1228.0,1227.9,54.00959]
[1610203480000,6.10669,1228.0,1227.9,55.25433037]
[1610203480001,6.08729,1228.0,1227.9,55.25433037]
[1610203482804,6.08729,1228.0,1227.9,51.24474037]
[1610203483003,36.08729,1228.0,1227.9,51.24474037]
[1610203483204,6.08729,1228.0,1227.9,51.24474037]
[1610203485504,6.08729,1228.0,1227.9,50.0]
[1610203486006,42.62449,1228.0,1227.8,50.0]
[1610203486206,36.08729,1228.0,1227.8,50.0]
[1610203486407,63.1532,1227.9,1227.4,50.0]
[1610203486607,30.0,1227.8,1227.4,50.0]
[1610203486808,30.0,1227.8,1226.9,50.0]
[1610203487008,30.0,1227.8,1227.3,50.0]
[1610203487410,30.0,1227.8,1227.2,50.0]
[1610203488111,4.00959,1227.3,1227.2,50.0]
[1610203488308,36.16569,1227.3,1227.2,50.0]
[1610203489310,36.16569,1227.3,1227.0,50.0]
[1610203489511,81.1766,1227.1,1227.0,50.0]
[1610203490112,85.18619,1227.1,1227.0,50.0]
[1610203490913,34.00959,1227.1,1227.0,50.0]
[1610203491713,74.92157095,1227.1,1227.0,50.0]
[1610203493416,74.92157095,1227.1,1226.9,50.0]
[1610203493617,54.27257554,1227.1,1226.9,50.0]
[1610203493817,40.90551577,1227.0,1226.9,50.0]
[1610203494017,72.80681577,1227.0,1226.9,50.0]
[1610203494420,52.15907787,1227.0,1226.9,50.0]
[1610203494818,60.13663923,1227.0,1226.9,50.0]
[1610203495219,52.15907787,1227.0,1226.9,50.0]
[1610203495620,52.15907787,1227.0,1225.9,47.4204]
[1610203495823,57.8547,1226.5,1225.9,47.4204]
[1610203496022,32.4233,1226.5,1224.8,0.24931777]
[1610203496223,4.00959,1225.5,1225.2,4.00959]
[1610203497826,4.00959,1225.5,1225.3,1.24664646]
[1610203499625,58.5204,1225.4,1225.1,1.24707792]
[1610203499825,60.7133,1225.4,1225.1,1.24707792]
[1610203500426,4.00959,1225.2,1225.1,1.24707792]
[1610203500826,4.00959,1225.2,1224.8,4.00959]
[1610203501227,46.8924,1225.1,1224.8,4.00959]
[1610203501627,49.3477,1225.1,1224.8,4.00959]
[1610203501929,2.4553,1225.1,1224.8,4.00959]
[1610203502330,2.4553,1225.1,1225.0,4.00959]
[1610203503532,2.1929,1225.4,1225.0,4.00959]
[1610203503732,2.1929,1225.4,1225.0,5.25656263]
[1610203504333,2.1929,1225.4,1225.3,4.00959]
[1610203504734,5.58689,1225.7,1225.3,11.06269]
[1610203505335,5.58689,1225.7,1225.3,12.309435]
[1610203506434,4.00959,1225.5,1225.3,5.256335]
[1610203506834,4.00959,1225.5,1225.4,1.24649232]
[1610203507834,1.5773,1225.7,1225.4,1.24649232]
[1610203508034,56.987,1226.2,1225.4,1.24649232]
[1610203508434,6.4504,1226.4,1225.7,4.00959]
[1610203508635,6.4504,1226.4,1225.8,53.4059]
[1610203509635,6.4504,1226.4,1225.9,1.24626735]
[1610203510035,2.4233,1226.5,1225.9,1.24626735]
[1610203510235,6.2485,1226.7,1225.9,1.24626735]
[1610203510436,6.2485,1226.7,1226.1,4.00959]
[1610203510437,4.00959,1226.4,1226.1,4.00959]
[1610203510638,6.58319,1226.4,1226.1,4.00959]
[1610203511436,2.5736,1226.4,1226.1,10.89179]
[1610203511636,2.2221,1226.8,1226.1,6.8822]
[1610203512337,4.00959,1226.2,1226.1,6.8822]
[1610203512941,2.2221,1226.8,1226.1,6.8822]
[1610203514341,2.2221,1226.8,1226.5,4.00959]
[1610203514742,2.2221,1226.8,1226.5,56.94639]
[1610203514941,2.2221,1226.8,1226.6,50.0]
[1610203515342,2.2221,1226.8,1226.7,50.0]
[1610203516444,4.00959,1226.9,1226.7,62.35919]
[1610203516648,4.00959,1226.9,1226.7,63.60461431]
[1610203517244,66.51080462,1227.8,1226.7,63.60461431]
[1610203517446,41.078437,1227.8,1226.8,50.0]
[1610203517646,41.09569264,1227.9,1226.8,50.0]
[1610203517846,41.09569264,1227.9,1226.9,108.6265]
[1610203518047,53.81948055,1228.0,1226.9,108.6265]
[1610203518246,53.81948055,1228.0,1226.9,58.6265]
[1610203518449,53.84602666,1228.1,1227.4,4.00959]
[1610203519048,41.12660832,1228.1,1227.4,4.00959]
[1610203519447,53.8896837,1228.2,1227.5,115.3063]
[1610203519648,41.16269281,1228.2,1227.5,115.3063]
[1610203520048,53.91775907,1228.3,1227.5,115.3063]
[1610203520347,53.91775907,1228.3,1227.8,4.00959]
[1610203521149,53.93528421,1228.4,1227.8,4.00959]
[1610203521550,41.1947816,1228.4,1227.9,50.0]
[1610203521950,53.70410759,1228.5,1227.9,50.0]
[1610203522249,40.960802,1228.5,1227.9,50.0]
[1610203522449,4.00959,1228.0,1227.9,50.0]
[1610203522649,40.960802,1228.5,1227.9,50.0]
[1610203522849,2.1923,1228.4,1228.0,50.0]
[1610203523251,43.15860839,1228.4,1228.0,50.0]
[1610203523550,55.90733609,1228.4,1228.0,50.0]
[1610203523749,55.90733609,1228.4,1227.9,50.0]
[1610203523949,40.97821842,1228.3,1227.9,50.0]
[1610203524349,4.00959,1228.0,1227.9,50.0]
[1610203524549,6.06589,1228.0,1227.5,65.3063]
[1610203524849,6.06589,1228.0,1227.6,50.0]
[1610203525251,6.06589,1228.0,1227.7,50.0]
[1610203525649,47.03033005,1228.0,1227.7,50.0]
[1610203525848,47.03033005,1228.0,1227.6,50.0]
[1610203525849,47.03033005,1228.0,1227.1,61.455]
[1610203526450,4.00959,1227.6,1227.3,4.00959]
[1610203526849,1.966,1227.7,1227.4,50.0]
[1610203527249,1.966,1227.7,1227.5,50.0]
[1610203527850,1.966,1227.7,1227.4,50.0]
[1610203528251,1.966,1227.7,1227.2,50.0]
[1610203528452,4.00959,1227.3,1227.2,50.0]
[1610203529052,4.00959,1227.3,1227.1,61.455]
[1610203529252,4.00959,1227.3,1227.2,50.0]
[1610203529652,1.966,1227.7,1227.2,50.0]
[1610203530052,1.966,1227.7,1227.3,50.0]
[1610203530453,5.97559,1227.7,1227.3,4.00959]
[1610203530753,5.97559,1227.7,1227.4,50.0]
[1610203532153,5.97559,1227.7,1227.5,50.0]
[1610203532554,5.97559,1227.7,1227.4,50.0]
[1610203532954,5.97559,1227.7,1227.5,50.0]
[1610203533254,5.97559,1227.7,1227.6,50.0]
[1610203533556,5.97559,1227.7,1227.4,50.0]
[1610203534158,5.97559,1227.7,1227.5,50.0]
[1610203534558,5.97559,1227.7,1227.4,50.0]
[1610203534757,5.97559,1227.7,1227.6,50.0]
[1610203537261,5.97559,1227.7,1227.5,50.0]
[1610203537461,5.97559,1227.7,1227.2,50.0]
[1610203538461,5.97559,1227.7,1227.6,50.0]
[1610203538462,1.966,1227.7,1227.6,50.0]
[1610203538662,55.86913104,1228.0,1227.6,50.0]
[1610203538862,55.86913104,1228.0,1227.3,50.0]
[1610203539061,55.86913104,1228.0,1227.6,50.0]
[1610203539463,55.86913104,1228.0,1227.7,50.0]
[1610203540065,55.86913104,1228.0,1227.7,46.7809]
[1610203540365,2.0563,1228.0,1227.8,50.0]
[1610203540565,4.00959,1227.9,1227.8,50.0]
[1610203540764,4.00959,1227.9,1227.7,46.7809]
[1610203540765,6.54019,1227.9,1227.7,46.7809]
[1610203541866,6.54019,1227.9,1227.8,50.0]
[1610203542266,6.54019,1227.9,1227.8,105.6074]
[1610203544268,2.5306,1227.9,1227.8,105.6074]
[1610203544469,2.5306,1227.9,1227.8,109.61699]
[1610203544869,2.5306,1227.9,1227.8,110.86189964]
[1610203546270,4.00959,1228.2,1227.8,110.86189964]
[1610203546469,4.00959,1228.2,1227.9,50.0]
[1610203546871,4.00959,1228.2,1228.0,50.0]
[1610203547471,4.00959,1228.2,1227.8,60.86189964]
[1610203547672,4.00959,1228.2,1228.1,50.0]
[1610203548071,4.00959,1228.2,1227.9,50.0]
[1610203548271,4.00959,1228.2,1228.1,50.0]
[1610203548671,4.00959,1228.2,1228.0,50.0]
[1610203549070,4.00959,1228.2,1228.1,50.0]
[1610203550871,58.17579516,1228.2,1228.1,50.0]
[1610203551873,4.00959,1228.2,1228.1,50.0]
[1610203552573,4.00959,1228.2,1228.1,54.00959]
[1610203554374,4.00959,1228.2,1228.1,50.0]
[1610203556177,4.00959,1228.2,1228.1,57.286]
[1610203556377,4.00959,1228.2,1228.1,50.0]
[1610203556577,6.1841,1228.3,1228.1,54.00959]
[1610203556778,2.1923,1228.4,1228.3,54.2481]
[1610203556980,54.1572311,1228.6,1228.3,54.2481]
[1610203557785,60.78684594,1228.7,1228.3,54.2481]
[1610203557986,60.78684594,1228.7,1228.3,104.2481]
[1610203558185,54.17424258,1228.6,1228.4,50.0]
[1610203558386,55.77894258,1228.6,1228.4,50.0]
[1610203558586,4.00959,1228.5,1228.3,54.2481]
[1610203559087,4.00959,1228.5,1228.4,50.0]
[1610203577004,50.24029,1228.5,1228.4,50.0]
[1610203577407,104.21412944,1228.5,1228.4,50.0]
[1610203577607,64.70398074,1228.5,1228.4,50.0]
[1610203578010,64.70398074,1228.5,1228.3,50.0]
[1610203578011,10.50438352,1228.5,1228.3,50.0]
[1610203578411,44.46070279,1228.4,1228.3,32.2719]
[1610203578611,44.46070279,1228.4,1226.3,3.65407152]
[1610203578612,36.49041422,1228.4,1227.8,50.0]
[1610203578810,4.00959,1227.9,1227.8,50.0]
[1610203579011,6.03179,1227.9,1227.8,50.0]
[1610203579210,38.42960894,1227.9,1227.8,50.0]
[1610203579611,42.77285262,1227.9,1227.8,50.0]
[1610203579915,59.45866512,1227.9,1227.8,50.0]
[1610203580312,38.42960894,1227.9,1227.8,50.0]
[1610203580715,71.9692334,1227.9,1227.8,38.6741]
[1610203580913,63.99476723,1227.9,1227.8,33.68950039]
[1610203581112,45.35811581,1227.9,1227.8,33.68950039]
[1610203581513,45.35811581,1227.9,1227.8,21.82580039]
[1610203582117,64.94636559,1227.9,1227.8,14.26070039]
[1610203582317,64.94636559,1227.9,1227.8,2.16130039]
[1610203582515,64.94636559,1227.9,1226.0,52.3314]
[1610203582516,46.9113,1226.8,1226.0,52.3314]
[1610203582715,4.00959,1226.1,1224.9,4.00959]
[1610203583115,4.00959,1226.1,1224.9,10.94299]
[1610203583316,4.00959,1226.1,1225.4,64.2182]
[1610203583516,4.00959,1226.1,1225.4,65.8577]
[1610203584716,4.00959,1226.1,1225.9,4.00959]
[1610203584916,4.00959,1226.1,1225.9,12.60039]
[1610203585516,4.00959,1226.1,1225.7,1.9664]
[1610203586916,4.00959,1225.8,1225.7,1.9664]
[1610203588718,4.00959,1225.8,1225.4,1.6395]
[1610203588919,4.00959,1225.8,1224.8,4.00959]
[1610203590121,4.00959,1225.8,1224.8,11.85669]
[1610203590320,4.00959,1225.8,1224.9,1.2471055]
[1610203590520,4.00959,1225.8,1224.9,3.6862055]
[1610203590920,4.00959,1225.8,1225.4,4.00959]
[1610203591122,4.00959,1225.8,1225.4,5.78999]
[1610203591522,0.04901755,1226.2,1225.4,5.78999]
[1610203592922,4.00959,1226.0,1225.7,4.00959]
[1610203594523,0.04901755,1226.2,1225.7,4.00959]
[1610203594926,4.00959,1225.9,1225.7,5.93989]
[1610203595124,0.04901755,1226.2,1225.7,5.93989]
[1610203595724,0.04901755,1226.2,1225.8,54.3623]
[1610203595924,0.04901755,1226.2,1225.8,55.60882795]
[1610203596925,0.04901755,1226.2,1226.1,4.00959]
[1610203597127,0.04901755,1226.2,1226.1,6.36289]
[1610203597525,0.04901755,1226.2,1226.1,15.74739]
[1610203598127,0.04901755,1226.2,1226.1,6.36289]
[1610203598728,0.04901755,1226.2,1226.1,7.60878266]
[1610203600130,14.6814257,1226.9,1226.1,7.60878266]
[1610203600131,54.26518703,1227.4,1226.1,7.60878266]
[1610203600729,41.41937626,1227.3,1226.2,7.1696]
[1610203600929,4.00959,1226.7,1226.5,4.00959]
[1610203602334,54.22432813,1227.4,1226.5,4.00959]
[1610203602536,53.95354046,1227.4,1226.5,4.00959]
[1610203602735,53.95354046,1227.4,1226.6,1.24582333]
[1610203602936,4.00959,1226.7,1226.6,1.24582333]
[1610203604440,53.95354046,1227.4,1226.6,1.24582333]
[1610203605340,53.95354046,1227.4,1226.8,50.0]
[1610203605541,53.98246031,1227.3,1226.8,52.1015]
[1610203605741,53.98246031,1227.3,1226.8,2.1015]
[1610203606140,53.9645564,1227.2,1226.8,2.1015]
[1610203606840,4.00959,1226.9,1226.8,69.8737]
[1610203607040,41.15314611,1227.2,1226.8,69.8737]
[1610203607240,53.98662327,1227.4,1226.8,69.8737]
[1610203607440,54.007332,1227.5,1226.8,69.8737]
[1610203607842,54.02979026,1227.7,1226.8,69.8737]
[1610203608641,54.02723507,1227.8,1226.8,119.8737]
[1610203608842,54.02723507,1227.8,1227.1,4.00959]
[1610203609041,54.02723507,1227.8,1227.1,5.70229]
[1610203609243,54.02723507,1227.8,1227.2,50.0]
[1610203610546,54.02723507,1227.8,1227.3,50.0]
[1610203610946,58.03682507,1227.8,1227.3,50.0]
[1610203611649,58.03682507,1227.8,1227.2,50.0]
[1610203611849,58.03682507,1227.8,1227.4,50.0]
[1610203612048,54.02168204,1227.7,1227.4,50.0]
[1610203612249,54.02168204,1227.7,1227.5,50.0]
[1610203612848,4.00959,1227.6,1227.5,50.0]
[1610203613451,4.00959,1227.6,1227.3,50.0]
[1610203613652,4.00959,1227.6,1227.3,105.4823]
[1610203614052,4.00959,1227.6,1227.3,55.4823]
[1610203614454,4.00959,1227.6,1227.4,50.0]
[1610203614852,4.00959,1227.6,1227.5,50.0]
[1610203615351,4.00959,1227.6,1227.4,50.0]
[1610203615751,4.00959,1227.6,1227.5,50.0]
[1610203616453,4.00959,1227.6,1227.3,50.0]
[1610203616653,58.06376127,1227.6,1227.3,50.0]
[1610203616853,54.07994882,1227.7,1227.4,50.0]
[1610203617354,54.09898764,1227.6,1227.2,50.0]
[1610203617759,54.09898764,1227.6,1227.3,50.0]
[1610203618157,54.09898764,1227.6,1227.2,50.0]
[1610203618659,54.12727651,1227.5,1227.2,50.0]
[1610203618859,4.00959,1227.3,1227.1,51.6927]
[1610203619460,4.00959,1227.3,1227.2,50.0]
[1610203619662,58.13954444,1227.3,1227.2,50.0]
[1610203619859,58.13954444,1227.3,1226.8,61.5077]
[1610203619860,6.47909688,1227.3,1226.8,61.5077]
[1610203620160,54.10643199,1227.1,1226.7,50.0]
[1610203620859,4.00959,1226.8,1226.7,50.0]
[1610203621061,4.00959,1226.8,1226.6,50.0]
[1610203623564,57.98649918,1226.8,1226.6,50.0]
[1610203623966,53.95215994,1226.7,1226.6,50.0]
[1610203626471,2.45966305,1226.7,1226.6,50.0]
[1610203626771,53.91805494,1226.7,1226.6,50.0]
[1610203627372,53.91805494,1226.7,1226.1,2.3533]
[1610203627572,53.91805494,1226.7,1226.3,49.9806]
[1610203627773,41.11768429,1226.7,1226.3,49.9806]
[1610203628474,41.10877528,1226.6,1226.3,49.9806]
[1610203628874,53.9036217,1226.6,1226.3,49.9806]
[1610203629074,4.00959,1226.4,1226.3,49.9806]
[1610203629274,70.86469,1226.4,1226.3,49.9806]
[1610203629778,124.63731047,1226.4,1226.3,49.9806]
[1610203630375,57.78221047,1226.4,1226.1,50.0]
[1610203630574,31.65603177,1226.4,1226.1,50.0]
[1610203630975,4.00959,1226.2,1225.6,60.2224]
[1610203631776,4.00959,1226.2,1224.8,6.811]
[1610203632177,4.00959,1226.2,1224.5,63.45320381]
[1610203632577,4.00959,1226.2,1224.5,63.2039]
[1610203632778,4.00959,1226.2,1226.1,50.0]
[1610203633779,45.00657429,1226.2,1226.1,50.0]
[1610203634179,57.76846648,1226.2,1226.1,50.0]
[1610203634581,4.00959,1226.2,1226.1,50.0]
[1610203638085,4.00959,1226.2,1225.4,1.7849]
[1610203638286,4.00959,1226.2,1225.1,46.1018]
[1610203638485,44.97955212,1226.2,1225.1,46.1018]
[1610203639087,4.00959,1225.2,1224.8,4.00959]
[1610203640787,4.00959,1225.2,1224.9,1.24704686]
[1610203640988,4.00959,1225.0,1224.9,1.24704686]
[1610203641188,4.00959,1225.0,1224.9,53.47154686]
[1610203642992,4.00959,1225.0,1224.9,3.47154686]
[1610203643591,4.00959,1225.0,1224.9,1.24704686]
[1610203644492,4.00959,1225.0,1224.1,4.00959]
[1610203644992,4.00959,1224.3,1224.1,4.00959]
[1610203646594,4.00959,1224.3,1224.2,1.24784413]
[1610203646795,4.00959,1224.3,1224.2,3.61894413]
[1610203647798,40.78164268,1225.3,1224.2,3.61894413]
[1610203648001,40.764767,1225.4,1224.2,3.61894413]
[1610203648201,40.764767,1225.4,1224.9,50.0]
[1610203648399,42.83627091,1225.5,1224.9,50.0]
[1610203648601,40.77487091,1225.5,1224.9,52.3019]
[1610203648800,53.48077038,1225.6,1224.9,52.3019]
[1610203649001,4.00959,1225.0,1224.9,2.3019]
[1610203649200,40.80857081,1225.7,1224.9,2.3019]
[1610203649400,40.80857081,1225.7,1225.0,50.0]
[1610203649601,40.81341861,1225.8,1225.0,50.0]
[1610203650001,40.81540827,1225.9,1225.0,50.0]
[1610203650604,40.83386649,1226.0,1224.9,2.3019]
[1610203651003,40.83386649,1226.0,1225.1,51.24721842]
[1610203652205,53.54309949,1226.0,1225.2,1.2471992]
[1610203652405,53.54309949,1226.0,1225.2,3.7281992]
[1610203652605,40.81994104,1225.9,1225.2,3.7281992]
[1610203653005,4.00959,1225.3,1225.2,3.7281992]
[1610203653705,4.00959,1225.3,1225.2,2.481]
[1610203654305,4.00959,1225.3,1225.2,52.481]
[1610203654706,4.00959,1225.3,1225.2,2.481]
[1610203654906,4.00959,1225.3,1224.6,1.6548]
[1610203655107,4.00959,1224.7,1224.6,50.0]
[1610203655306,40.81007506,1225.5,1224.6,50.0]
[1610203655708,40.81007506,1225.5,1224.7,50.0]
[1610203655905,40.81088559,1225.4,1224.7,50.0]
[1610203656106,40.827601,1225.5,1224.7,50.0]
[1610203656606,40.827601,1225.5,1224.8,1.24760434]
[1610203656807,43.25469233,1225.6,1224.8,1.24760434]
[1610203657006,4.00959,1224.9,1224.8,1.24760434]
[1610203658407,4.00959,1224.9,1224.8,51.24760434]
[1610203658807,4.00959,1224.9,1224.8,1.24760434]
[1610203660408,4.00959,1224.9,1224.8,51.24760434]
[1610203660811,43.31751067,1225.6,1225.1,195.99041]
[1610203661010,4.00959,1225.2,1225.1,195.99041]
[1610203663514,4.00959,1225.2,1225.1,197.23779793]
[1610203663715,4.00959,1225.2,1225.1,247.23779793]
[1610203664014,47.35765992,1225.7,1225.1,247.23779793]
[1610203664214,47.35765992,1225.7,1225.1,248.91429793]
[1610203664715,47.35765992,1225.7,1225.1,198.91429793]
[1610203665114,4.00959,1225.2,1225.1,197.66691]
[1610203665716,4.00959,1225.2,1225.1,247.66691]
[1610203666316,4.00959,1225.2,1225.1,248.91425724]
[1610203669222,4.00959,1225.2,1225.1,198.91425724]
[1610203669822,4.00959,1225.2,1225.1,248.91425724]